fUST/lending_fUST_20251231
["ID","MTS","AMOUNT","RATE_DAILY","PERIOD"]
[400121118,1767135056882,-246.486511,0.00028557,7]
[400121119,1767135056892,-658.752585,0.00028557,7]
[400121120,1767135056901,-246.486511,0.00028557,7]
[400121121,1767135056910,-658.752585,0.00028557,7]
[400121122,1767135056919,-157.217359,0.00028557,7]
[400121123,1767135056928,-157.217359,0.00028557,7]
[400121124,1767135056937,-157.217359,0.00028557,7]
[400121125,1767135056946,-157.217359,0.00028557,7]
[400121126,1767135056955,-8981.25,0.000286,2]
[400121127,1767135056964,-184.1347424,0.00028603,30]
[400121128,1767135056974,-184.1347424,0.00028603,30]
[400121129,1767135056984,-184.1347424,0.00028603,30]
[400121130,1767135056993,-599.6069297,0.00028605,30]
[400121131,1767135057003,-555.66252378,0.0002863,60]
[400121132,1767135057012,-207.508371,0.0002863,60]
[400121133,1767135057025,-500.0,0.0002863,60]
[400121134,1767135057034,-500.0,0.0002863,60]
[400121135,1767135057044,-526.82617533,0.0002863,60]
[400121136,1767135057053,-500.0,0.0002863,60]
[400121137,1767135057063,-219.22126826,0.0002863,60]
[400121138,1767135057072,-150.0,0.0002863,60]
[400121139,1767135057082,-150.0,0.0002863,2]
[400121140,1767135057091,-551.3747336,0.0002863,30]
[400121141,1767135057101,-257.6792504,0.0002863,30]
[400121142,1767135057110,-1199.2138594,0.00028631,30]
[400121143,1767135057119,-401.96,0.000287,4]
[400121144,1767135057128,-150.0,0.000287,2]
[400121145,1767135057138,-23617.3,0.000287,3]
[400121146,1767135057147,-1294.0,0.00028739,2]
[400121147,1767135057156,-19127.78853029,0.0002876,2]
[400121148,1767135057165,-26856.18291141,0.0002876,2]
[400121149,1767135057175,-500.0,0.0002876,20]
[400121150,1767135057184,-500.0,0.0002876,5]
[400121151,1767135057193,-500.0,0.0002876,5]
[400121152,1767135057203,-500.0,0.0002876,20]
[400121153,1767135057212,-500.0,0.0002876,5]
[400121154,1767135057222,-500.0,0.0002876,20]
[400121155,1767135057231,-500.0,0.0002876,5]
[400121156,1767135057240,-500.0,0.0002876,5]
[400121157,1767135057256,-500.0,0.0002876,5]
[400121158,1767135057265,-500.0,0.0002876,20]
[400121159,1767135057274,-5000.0,0.00028766,15]
[400121160,1767135057284,-500.0,0.00028767,60]
[400121161,1767135057294,-500.0,0.00028767,60]
[400121162,1767135057304,-500.0,0.00028767,60]
[400121163,1767135057314,-200.0,0.00028767,60]
[400121164,1767135057323,-167.0,0.00028767,14]
[400121165,1767135057333,-500.0,0.00028767,7]
[400121166,1767135057343,-500.0,0.00028767,2]
[400121167,1767135057352,-446.25,0.00028767,7]
[400121168,1767135057361,-153.0,0.00028767,30]
[400121169,1767135057371,-153.0,0.00028767,30]
[400121170,1767135057381,-153.0,0.00028767,30]
[400121171,1767135057390,-153.0,0.00028767,30]
[400121172,1767135057400,-600.0,0.00028785,2]
[400121173,1767135057409,-1207.0,0.00028796,2]
[400121174,1767135057422,-172.33062748,0.000288,7]
[400121175,1767135057432,-852.16,0.000288,2]
[400121176,1767135057441,-852.16,0.000288,2]
[400121177,1767135057451,-575.56158628,0.00028831,2]
[400121178,1767135057460,-852.16,0.000289,2]
[400121179,1767135057470,-852.16,0.000289,2]
[400121180,1767135057479,-200.0,0.00028902,120]
[400121181,1767135057489,-200.0,0.00028902,120]
[400121182,1767135057499,-500.0,0.00028904,60]
[400121183,1767135057508,-500.0,0.00028904,60]
[400121184,1767135057518,-500.0,0.00028904,60]
[400121185,1767135057527,-500.0,0.00028904,120]
[400121186,1767135057536,-1291.0,0.0002892,2]
[400121187,1767135057546,-153.0,0.00028986,30]
[400121188,1767135057555,-153.0,0.00028986,30]
[400121189,1767135057565,-153.0,0.00028986,30]
[400121190,1767135057574,-153.0,0.00028986,30]
[400121191,1767135057584,-153.0,0.00028986,30]
[400121192,1767135057593,-153.0,0.00028986,30]
[400121193,1767135057603,-301.01965178,0.00029,2]
[400121194,1767135057612,-889.49824385,0.00029,2]
[400121195,1767135057621,-2406.38515982,0.00029,10]
[400121196,1767135057631,-200.0,0.00029,120]
[400121197,1767135057641,-253.69337,0.00029,120]
[400121198,1767135057650,-159.462328,0.00029,5]
[400121199,1767135057659,-3194.89957311,0.00029,120]
[400121200,1767135057669,-1041.66666667,0.00029,10]
[400121201,1767135057749,-1041.66666667,0.00029,30]
[400121202,1767135057759,-1500.0,0.00029,2]
[400121203,1767135057768,-852.16,0.00029,2]
[400121204,1767135057777,-1041.66666667,0.00029,7]
[400121205,1767135057787,-500.0,0.00029041,60]
[400121206,1767135057797,-500.0,0.00029041,60]
[400121207,1767135057806,-500.0,0.00029041,60]
[400121208,1767135057815,-500.0,0.00029041,120]
[400121209,1767135057824,-496.89068161,0.00029048,14]
[400121210,1767135057834,-717.24657158,0.0002907,2]
[400121211,1767135057843,-1291.0,0.00029079,2]
[400121212,1767135057852,-350.0,0.00029096,5]
[400121213,1767135057861,-1552.86,0.000291,14]
[400121214,1767135057871,-852.16,0.000291,2]
[400121215,1767135057880,-852.16,0.000291,2]
[400121216,1767135057890,-300.35112488,0.00029146,19]
[400121217,1767135057899,-500.0,0.00029178,60]
[400121218,1767135057908,-500.0,0.00029178,60]
[400121219,1767135057917,-500.0,0.00029178,60]
[400121220,1767135057927,-500.0,0.00029178,120]
[400121221,1767135057937,-1207.0,0.00029188,2]
[400121222,1767135057946,-150.0,0.000292,2]
[400121223,1767135057955,-852.16,0.000292,2]
[400121224,1767135057964,-852.16,0.000292,2]
[400121225,1767135057973,-1205.0,0.00029229,2]
[400121226,1767135057982,-852.16,0.000293,2]
[400121227,1767135057992,-500.0,0.00029315,60]
[400121228,1767135058001,-250.0,0.00029315,60]
[400121229,1767135058011,-500.0,0.00029315,60]
[400121230,1767135058025,-500.0,0.00029315,120]
[400121231,1767135058034,-1205.0,0.00029316,2]
[400121232,1767135058043,-1291.0,0.00029317,2]
[400121233,1767135058052,-627.0,0.00029324,2]
[400121234,1767135058063,-2156.0,0.00029324,2]
[400121235,1767135058072,-1364.0,0.00029324,2]
[400121236,1767135058084,-150.0,0.00029324,2]
[400121237,1767135058095,-229.207,0.00029324,2]
[400121238,1767135058104,-416.0,0.00029324,2]
[400121239,1767135058114,-288.35,0.000294,7]
[400121240,1767135058123,-852.16,0.000294,2]
[400121241,1767135058132,-852.16,0.000294,2]
[400121242,1767135058143,-1291.0,0.00029422,2]
[400121243,1767135058152,-500.0,0.00029452,60]
[400121244,1767135058162,-500.0,0.00029452,60]
[400121245,1767135058172,-500.0,0.00029452,120]
[400121246,1767135058182,-758.7162597,0.00029453,30]
[400121247,1767135058192,-189.97563108,0.00029493,5]
[400121248,1767135058202,-384.21694444,0.000295,120]
[400121249,1767135058211,-165.69,0.000295,7]
[400121250,1767135058220,-1500.0,0.000295,2]
[400121251,1767135058230,-852.16,0.000295,2]
[400121252,1767135058239,-852.16,0.000295,2]
[400121253,1767135058249,-500.0,0.00029536,7]
[400121254,1767135058259,-500.0,0.00029589,60]
[400121255,1767135058268,-500.0,0.00029589,60]
[400121256,1767135058278,-166.34,0.000296,7]
[400121257,1767135058287,-852.16,0.000296,2]
[400121258,1767135058297,-852.16,0.000296,2]
[400121259,1767135058306,-256.5,0.00029615,10]
[400121260,1767135058316,-450.0,0.00029644,5]
[400121261,1767135058325,-852.16,0.000297,2]
[400121262,1767135058335,-23617.3,0.000297,3]
[400121263,1767135058344,-500.0,0.00029726,60]
[400121264,1767135058354,-500.0,0.00029726,60]
[400121265,1767135058363,-184.1347424,0.00029726,30]
[400121266,1767135058372,-184.1347424,0.00029726,30]
[400121267,1767135058383,-184.1347424,0.00029726,30]
[400121268,1767135058392,-184.1347424,0.00029726,30]
[400121269,1767135058401,-184.1347424,0.00029726,30]
[400121270,1767135058411,-184.1347424,0.00029726,30]
[400121271,1767135058420,-184.1347424,0.00029726,30]
[400121272,1767135058430,-184.1347424,0.00029726,30]
[400121273,1767135058440,-184.1347424,0.00029726,30]
[400121274,1767135058450,-184.1347424,0.00029726,30]
[400121275,1767135058459,-184.1347424,0.00029726,30]
[400121276,1767135058469,-184.1347424,0.00029726,30]
[400121277,1767135058478,-184.1347424,0.00029726,30]
[400121278,1767135058488,-184.1347424,0.00029726,30]
[400121279,1767135058497,-184.1347424,0.00029726,30]
[400121280,1767135058506,-105507.18925983,0.000298,7]
[400121281,1767135058653,-15982.82402967,0.000298,7]
[400121282,1767135058667,-587.88689563,0.000298,7]
[400121283,1767135058850,-3e-08,0.0001524,2]
[400121284,1767135058862,-2957.96963287,0.0001524,2]
[400121285,1767135058871,-1908.85072464,0.00021079,2]
[400121286,1767135058880,-1908.85072464,0.00023136,2]
[400121287,1767135058890,-1908.85072464,0.00025193,2]
[400121288,1767135058899,-151.0,0.00027397,7]
[400121289,1767135058909,-151.0,0.00027397,7]
[400121290,1767135058918,-240.753329,0.00027397,7]
[400121291,1767135058928,-151.0,0.000285,7]
[400121292,1767135058938,-15390.86209087,0.000298,7]
[400121293,1767135058948,-151.0,0.000298,7]
[400121294,1767135058958,-151.0,0.000298,7]
[400121295,1767135058968,-151.0,0.000298,7]
[400121296,1767135058978,-151.0,0.000298,7]
[400121297,1767135058988,-163.367895,0.000298,7]
[400121298,1767135059068,-151.0,0.000298,7]
[400121299,1767135059088,-208.758378,0.000298,7]
[400121300,1767135059098,-852.16,0.000298,2]
[400121301,1767135059108,-852.16,0.000298,2]
[400121302,1767135059118,-306.0,0.00029808,30]
[400121303,1767135059128,-500.0,0.00029863,60]
[400121304,1767135059137,-500.0,0.00029863,60]
[400121305,1767135059147,-8843.06629937,0.000299,2]
[400121306,1767135059160,-138.18370063,0.000299,2]
[400121307,1767135059169,-852.16,0.000299,2]
[400121308,1767135059179,-129.16171944,0.000299,2]
[400121309,1767135059191,-722.99828056,0.000299,2]
[400121310,1767135059200,-200.0,0.00029925,120]
[400121311,1767135059210,-200.0,0.00029925,120]
[400121312,1767135059220,-200.0,0.00029925,120]
[400121313,1767135059229,-200.0,0.00029925,120]
[400121314,1767135059239,-200.0,0.00029925,120]
[400121315,1767135059249,-396.14635081,0.00029925,120]
[400121316,1767135059258,-212.74105409,0.0003,60]
[400121317,1767135059268,-228.1234632,0.0003,60]
[400121318,1767135059278,-412.34289824,0.0003,10]
[400121319,1767135059288,-14079.24116497,0.0003,2]
[400121320,1767135059299,-1795.85138465,0.0003,2]
[400121321,1767135059311,-33406.60235322,0.0003,2]
[400121322,1767135059320,-385.78785205,0.0003,120]
[400121323,1767135059330,-428.14042977,0.0003,120]
[400121324,1767135059339,-843.31673468,0.0003,30]
[400121325,1767135059348,-1500.0,0.0003,45]
[400121326,1767135059357,-509.61616711,0.0003,30]
[400121327,1767135059367,-265.86918879,0.0003,120]
[400121328,1767135059377,-639.91478476,0.0003,5]
[400121329,1767135059386,-17917.85057978,0.0003,2]
[400121330,1767135059396,-300.0,0.0003,30]
[400121331,1767135059406,-267.0,0.0003,30]
[400121332,1767135059416,-269.46670806,0.0003,2]
[400121333,1767135059426,-706.67383558,0.0003,10]
[400121334,1767135059436,-3811.18525448,0.0003,7]
[400121335,1767135059446,-293.14478864,0.0003,10]
[400121336,1767135059455,-264.111661,0.0003,7]
[400121337,1767135059464,-151.0,0.0003,7]
[400121338,1767135059474,-151.0,0.0003,7]
[400121339,1767135059483,-151.0,0.0003,7]
[400121340,1767135059492,-151.0,0.0003,7]
[400121341,1767135059502,-590.229866,0.0003,7]
[400121342,1767135059511,-590.229866,0.0003,7]
[400121343,1767135059521,-590.229866,0.0003,7]
[400121344,1767135059530,-590.229866,0.0003,7]
[400121345,1767135059539,-155.54786,0.0003,7]
[400121346,1767135059548,-151.0,0.0003,7]
[400121347,1767135059557,-151.0,0.0003,7]
[400121348,1767135059567,-151.0,0.0003,7]
[400121349,1767135059576,-151.0,0.0003,7]
[400121350,1767135059586,-151.0,0.0003,7]
[400121351,1767135059595,-273.461085,0.0003,7]
[400121352,1767135059604,-273.461085,0.0003,7]
[400121353,1767135059614,-151.0,0.0003,7]
[400121354,1767135059623,-273.461085,0.0003,7]
[400121355,1767135059632,-151.0,0.0003,7]
[400121356,1767135059642,-273.461085,0.0003,7]
[400121357,1767135059652,-151.0,0.0003,7]
[400121358,1767135059661,-231.581003,0.0003,7]
[400121359,1767135059670,-205.896426,0.0003,7]
[400121360,1767135059680,-167.845049,0.0003,7]
[400121361,1767135059690,-205.896426,0.0003,7]
[400121362,1767135059699,-167.845049,0.0003,7]
[400121363,1767135059710,-205.896426,0.0003,7]
[400121364,1767135059719,-167.845049,0.0003,7]
[400121365,1767135059728,-205.896422,0.0003,7]
[400121366,1767135059738,-167.845046,0.0003,7]
[400121367,1767135059747,-1500.0,0.0003,2]
[400121368,1767135059757,-852.16,0.0003,2]
[400121369,1767135059766,-2000.01,0.0003,30]
[400121370,1767135059776,-151.0,0.0003,7]
[400121371,1767135059785,-151.0,0.0003,7]
[400121372,1767135059795,-151.0,0.0003,7]
[400121373,1767135059804,-151.0,0.0003,7]
[400121374,1767135059813,-328.6654,0.000301,120]
[400121375,1767135059822,-1002.0,0.000301,30]
[400121376,1767135059831,-151.0,0.000301,7]
[400121377,1767135059840,-160.815486,0.000301,7]
[400121378,1767135059850,-852.16,0.000301,2]
[400121379,1767135059859,-852.16,0.000301,2]
[400121380,1767135059868,-151.0,0.000301,7]
[400121381,1767135059878,-948.223993,0.000301,7]
[400121382,1767135059886,-948.223993,0.000301,7]
[400121383,1767135059895,-948.223993,0.000301,7]
[400121384,1767135059905,-948.223993,0.000301,7]
[400121385,1767135059914,-151.0,0.000301,7]
[400121386,1767135059923,-151.0,0.000301,7]
[400121387,1767135059933,-151.0,0.000301,7]
[400121388,1767135059942,-2000.0,0.00030155,7]
[400121389,1767135059951,-160.0,0.00030162,3]
[400121390,1767135059960,-160.0,0.00030162,3]
[400121391,1767135059969,-5000.0,0.00030179,2]
[400121392,1767135059979,-550.0,0.00030192,5]
[400121393,1767135059988,-13544.08995535,0.00030195,2]
[400121394,1767135059998,-852.16,0.000302,2]
[400121395,1767135060007,-852.16,0.000302,2]
[400121396,1767135060018,-206.6,0.00030205,30]
[400121397,1767135060027,-170.0,0.00030205,14]
[400121398,1767135060036,-726.0,0.00030239,3]
[400121399,1767135060046,-852.16,0.000303,2]
[400121400,1767135060056,-189.97563107,0.00030332,10]
[400121401,1767135060067,-1316.1681473,0.00030341,2]
[400121402,1767135060077,-38433.5440025,0.00030354,2]
[400121403,1767135060086,-300.35112488,0.00030381,21]
[400121404,1767135060097,-852.16,0.000304,2]
[400121405,1767135060106,-852.16,0.000304,2]
[400121406,1767135060116,-726.0,0.00030482,3]
[400121407,1767135060125,-160.0,0.00030482,3]
[400121408,1767135060135,-1552.86,0.000305,14]
[400121409,1767135060144,-288.35,0.000305,7]
[400121410,1767135060153,-852.16,0.000305,2]
[400121411,1767135060163,-852.16,0.000305,2]
[400121412,1767135060172,-151.0,0.00030568,31]
[400121413,1767135060181,-151.0,0.00030568,31]
[400121414,1767135060191,-151.0,0.00030568,31]
[400121415,1767135060200,-852.16,0.000306,2]
[400121416,1767135060210,-852.16,0.000306,2]
[400121417,1767135060220,-211.0809318,0.0003064,2]
[400121418,1767135060229,-852.16,0.000307,2]
[400121419,1767135060239,-650.0,0.0003074,5]
[400121420,1767135060248,-159.47,0.000308,7]
[400121421,1767135060257,-852.16,0.000308,2]
[400121422,1767135060267,-852.16,0.000308,2]
[400121423,1767135060276,-726.0,0.00030802,3]
[400121424,1767135060286,-726.0,0.00030802,3]
[400121425,1767135060295,-618.02104757,0.00030831,2]
[400121426,1767135060304,-852.16,0.000309,2]
[400121427,1767135060313,-852.16,0.000309,2]
[400121428,1767135060324,-1529.45,0.00030958,30]
[400121429,1767135060398,-173.91029314,0.00031,120]
[400121430,1767135060408,-669.91685083,0.00031,120]
[400121431,1767135060417,-590.14317731,0.00031,120]
[400121432,1767135060427,-274.75817992,0.00031,120]
[400121433,1767135060437,-367.65543656,0.00031,120]
[400121434,1767135060446,-759.91165305,0.00031,120]
[400121435,1767135060455,-661.08285093,0.00031,120]
[400121436,1767135060465,-616.97791178,0.00031,120]
[400121437,1767135060475,-201.19436054,0.00031,120]
[400121438,1767135060483,-180.65011172,0.00031,120]
[400121439,1767135060493,-167.28493125,0.00031,120]
[400121440,1767135060502,-1041.66666667,0.00031,120]
[400121441,1767135060512,-578.71089724,0.00031,120]
[400121442,1767135060522,-541.02927458,0.00031,120]
[400121443,1767135060531,-469.51361326,0.00031,120]
[400121444,1767135060540,-151.0,0.00031,31]
[400121445,1767135060549,-206.345452,0.00031,31]
[400121446,1767135060559,-206.345452,0.00031,31]
[400121447,1767135060568,-206.345452,0.00031,31]
[400121448,1767135060577,-206.345452,0.00031,31]
[400121449,1767135060588,-246.486511,0.00031,31]
[400121450,1767135060597,-658.752585,0.00031,31]
[400121451,1767135060606,-246.486511,0.00031,31]
[400121452,1767135060616,-658.752585,0.00031,31]
[400121453,1767135060626,-246.486511,0.00031,31]
[400121454,1767135060635,-658.752585,0.00031,31]
[400121455,1767135060645,-246.486511,0.00031,31]
[400121456,1767135060654,-658.752585,0.00031,31]
[400121457,1767135060663,-157.217359,0.00031,31]
[400121458,1767135060672,-157.217359,0.00031,31]
[400121459,1767135060681,-157.217359,0.00031,31]
[400121460,1767135060690,-157.217359,0.00031,31]
[400121461,1767135060700,-852.16,0.00031,2]
[400121462,1767135060709,-852.16,0.000311,2]
[400121463,1767135060719,-852.16,0.000311,2]
[400121464,1767135060728,-13260.06057461,0.0003112,2]
[400121465,1767135060738,-151.0,0.0003112,31]
[400121466,1767135060747,-160.0,0.00031122,3]
[400121467,1767135060756,-8981.25,0.000312,2]
[400121468,1767135060766,-852.16,0.000312,2]
[400121469,1767135060775,-852.16,0.000312,2]
[400121470,1767135060785,-750.0,0.00031288,5]
[400121471,1767135060794,-6050.20768474,0.000313,2]
[400121472,1767135060803,-852.16,0.000313,2]
[400121473,1767135060812,-250.0,0.000314,120]
[400121474,1767135060822,-852.16,0.000314,2]
[400121475,1767135060831,-852.16,0.000314,2]
[400121476,1767135060840,-1000.0,0.00031413,30]
[400121477,1767135060849,-1000.0,0.00031413,30]
[400121478,1767135060858,-1000.0,0.00031413,30]
[400121479,1767135060867,-500.0,0.00031433,7]
[400121480,1767135060877,-726.0,0.00031442,3]
[400121481,1767135060887,-852.16,0.000315,2]
[400121482,1767135060896,-852.16,0.000315,2]
[400121483,1767135060906,-1529.45,0.00031506,31]
[400121484,1767135060916,-474.5,0.00031595,30]
[400121485,1767135060926,-151.0,0.000316,31]
[400121486,1767135060936,-151.0,0.000316,31]
[400121487,1767135060946,-852.16,0.000316,2]
[400121488,1767135060955,-852.16,0.000316,2]
[400121489,1767135060964,-300.35112488,0.00031616,22]
[400121490,1767135060974,-206.6,0.00031644,30]
[400121491,1767135060983,-328.6654,0.000317,120]
[400121492,1767135060993,-500.0,0.00031728,7]
[400121493,1767135061002,-2000.0,0.00031796,7]
[400121494,1767135061011,-1552.86,0.000318,14]
[400121495,1767135061024,-850.0,0.00031836,5]
[400121496,1767135061033,-11247.79533795,0.000319,2]
[400121497,1767135061042,-669.91685083,0.000319,120]
[400121498,1767135061051,-43.0149616,0.000319,120]
[400121499,1767135061065,-231.74321832,0.000319,120]
[400121500,1767135061073,-590.14317731,0.000319,120]
[400121501,1767135061083,-367.65543656,0.000319,120]
[400121502,1767135061091,-759.91165305,0.000319,120]
[400121503,1767135061100,-661.08285093,0.000319,120]
[400121504,1767135061109,-616.97791178,0.000319,120]
[400121505,1767135061118,-180.65011172,0.000319,120]
[400121506,1767135061128,-167.28493125,0.000319,120]
[400121507,1767135061137,-578.71089724,0.000319,120]
[400121508,1767135061146,-541.02927458,0.000319,120]
[400121509,1767135061155,-469.51361326,0.000319,120]
[400121510,1767135061165,-981.36660464,0.00031976,7]
[400121511,1767135061174,-200.51904304,0.00032,2]
[400121512,1767135061184,-1780.2113522,0.00032,120]
[400121513,1767135061193,-246.67659698,0.00032,120]
[400121514,1767135061205,-153.32340302,0.00032,120]
[400121515,1767135061214,-150.80359698,0.00032,120]
[400121516,1767135061315,-376.62664061,0.0001602,2]
[400121517,1767135061339,-1318.70184405,0.0001602,2]
[400121518,1767135061350,-1262.64114824,0.0001602,2]
[400121519,1767135061360,-150.49,0.00026324,2]
[400121520,1767135061369,-1908.85072464,0.0002725,2]
[400121521,1767135061379,-151.0,0.00027999,5]
[400121522,1767135061388,-151.0,0.00027999,5]
[400121523,1767135061398,-151.0,0.00027999,5]
[400121524,1767135061407,-151.0,0.00027999,5]
[400121525,1767135061417,-151.0,0.00027999,5]
[400121526,1767135061427,-151.0,0.00027999,5]
[400121527,1767135061436,-151.0,0.00027999,5]
[400121528,1767135061445,-1908.85072464,0.00029306,2]
[400121529,1767135061455,-1908.85072464,0.00031363,2]
[400121530,1767135061464,-11.24484796,0.00032,120]
[400121531,1767135061474,-7065.90960138,0.00032004,38]
[400121532,1767135061484,-5000.0,0.00032004,32]
[400121533,1767135061493,-249.067044,0.00032004,31]
[400121534,1767135061503,-150.0,0.00032037,30]
[400121535,1767135061512,-1529.45,0.00032054,32]
[400121536,1767135061522,-500.0,0.0003216,2]
[400121537,1767135061532,-150.0,0.000322,2]
[400121538,1767135061605,-167.0,0.00032219,14]
[400121539,1767135061615,-627.0,0.00032324,2]
[400121540,1767135061624,-2156.0,0.00032324,2]
[400121541,1767135061633,-1364.0,0.00032324,2]
[400121542,1767135061642,-150.0,0.00032324,2]
[400121543,1767135061651,-416.0,0.00032324,2]
[400121544,1767135061661,-950.0,0.00032384,5]
[400121545,1767135061670,-4000.0,0.000324,120]
[400121546,1767135061679,-1529.45,0.00032602,33]
[400121547,1767135061688,-193.3325444,0.00032603,30]
[400121548,1767135061697,-193.3325444,0.00032603,30]
[400121549,1767135061706,-193.3325444,0.00032603,30]
[400121550,1767135061715,-193.3325444,0.00032603,30]
[400121551,1767135061724,-193.3325444,0.00032603,30]
[400121552,1767135061733,-193.3325444,0.00032603,30]
[400121553,1767135061743,-193.3325444,0.00032603,30]
[400121554,1767135061752,-10232.72518105,0.00032667,2]
[400121555,1767135061774,-153.05616233,0.00032667,2]
[400121556,1767135061785,-3158.30861197,0.00032667,2]
[400121557,1767135061795,-660.48050885,0.00032831,2]
[400121558,1767135061804,-300.35112488,0.00032851,23]
[400121559,1767135061813,-965.70893362,0.00032876,120]
[400121560,1767135061823,-575.02,0.00032876,2]
[400121561,1767135061832,-575.02,0.00032876,2]
[400121562,1767135061842,-575.02,0.00032876,2]
[400121563,1767135061851,-575.02,0.00032876,2]
[400121564,1767135061861,-575.02,0.00032876,2]
[400121565,1767135061870,-575.02,0.00032876,2]
[400121566,1767135061880,-575.02,0.00032876,2]
[400121567,1767135061889,-575.02,0.00032876,2]
[400121568,1767135061899,-575.02,0.00032876,2]
[400121569,1767135061909,-53.08284739,0.00032876,2]
[400121570,1767135061920,-521.93715261,0.00032876,2]
[400121571,1767135061930,-575.02,0.00032876,2]
[400121572,1767135061939,-575.02,0.00032876,2]
[400121573,1767135061948,-575.02,0.00032876,2]
[400121574,1767135061958,-575.02,0.00032876,2]
[400121575,1767135061967,-575.02,0.00032876,2]
[400121576,1767135061976,-575.02,0.00032876,2]
[400121577,1767135061985,-575.02,0.00032876,2]
[400121578,1767135061994,-470.04782302,0.00032876,2]
[400121579,1767135062015,-151.0,0.00027999,5]
[400121580,1767135062028,-150.0,0.00029324,2]
[400121581,1767135062038,-104.97217698,0.00032876,2]
[400121582,1767135062047,-575.02,0.00032876,2]
[400121583,1767135062055,-575.02,0.00032876,2]
[400121584,1767135062066,-575.02,0.00032876,2]
[400121585,1767135062075,-575.02,0.00032876,2]
[400121586,1767135062085,-575.02,0.00032876,2]
[400121587,1767135062095,-575.2218476,0.00032876,2]
[400121588,1767135062104,-500.0,0.00032877,8]
[400121589,1767135062114,-528.74406618,0.00032877,8]
[400121590,1767135062123,-308.93,0.00032877,10]
[400121591,1767135062132,-257.44,0.00032877,10]
[400121592,1767135062142,-214.53,0.00032877,10]
[400121593,1767135062152,-500.0,0.00032877,5]
[400121594,1767135062161,-150.0,0.00032877,5]
[400121595,1767135062170,-889.82912169,0.0003288,120]
[400121596,1767135062179,-25.82342342,0.000329,120]
[400121597,1767135062191,-644.09342741,0.000329,120]
[400121598,1767135062200,-65.8760944,0.000329,120]
[400121599,1767135062211,-524.26708291,0.000329,120]
[400121600,1767135062220,-274.75817992,0.000329,120]
[400121601,1767135062229,-367.65543656,0.000329,120]
[400121602,1767135062238,-759.91165305,0.000329,120]
[400121603,1767135062247,-661.08285093,0.000329,120]
[400121604,1767135062257,-616.97791178,0.000329,120]
[400121605,1767135062266,-578.71089724,0.000329,120]
[400121606,1767135062276,-541.02927458,0.000329,120]
[400121607,1767135062285,-469.51361326,0.000329,120]
[400121608,1767135062295,-1998.0421011,0.00032905,2]
[400121609,1767135062307,-2474.9578989,0.00032905,2]
[400121610,1767135062317,-1050.0,0.00032932,5]
[400121611,1767135062326,-189.05,0.00033,2]
[400121612,1767135062336,-22112.2821011,0.00033,20]
[400121613,1767135062402,-151.0,0.00027999,5]
[400121614,1767135062411,-2432.70658444,0.00033,20]
[400121617,1767135073071,150.0,0.00012441,2]
[400121618,1767135081925,740.88140641,0.00012771,2]
[400121619,1767135104100,164.706,0.00012701,2]